bitfinex/quotes_ETHUSD_20250214
["timestamp","ask_amount","ask_price","bid_price","bid_amount"]
[1739498367250,0.55,2686.6,2686.3,0.09803224]
[1739498367452,0.55,2686.6,2686.2,4.54335]
[1739498367653,0.55,2686.6,2686.3,0.09803224]
[1739498367855,0.55,2686.6,2686.2,4.54335]
[1739498368062,0.55,2686.6,2686.3,3.72251]
[1739498368362,0.55,2686.6,2686.3,0.09803224]
[1739498368690,5.239,2687.0,2686.6,3.72216]
[1739498369145,0.55,2686.9,2686.6,3.72216]
[1739498369345,0.55,2686.9,2686.5,4.53819]
[1739498369585,0.55,2686.9,2686.7,0.09803224]
[1739498369784,0.55,2686.9,2686.5,4.53819]
[1739498369986,0.55,2686.9,2686.8,0.09803224]
[1739498370148,0.55,2686.9,2686.5,0.8159]
[1739498370499,0.55,2686.9,2686.5,4.53817]
[1739498370660,0.55,2686.9,2686.6,0.09803224]
[1739498371070,2.239,2687.0,2686.6,3.82019224]
[1739498371250,2.239,2687.0,2686.6,3.72216]
[1739498371451,0.55,2686.9,2686.6,3.72216]
[1739498371855,0.55,2686.9,2686.7,0.09803224]
[1739498372545,0.55,2686.9,2686.5,4.53816]
[1739498372752,0.55,2686.9,2686.8,0.09803224]
[1739498372950,0.55,2686.9,2686.5,4.53816]
[1739498373274,0.55,2686.9,2686.6,3.72216]
[1739498373469,0.55,2686.9,2686.7,0.09803224]
[1739498373669,0.55,2686.9,2686.7,3.82006224]
[1739498374957,0.55,2686.9,2686.8,0.7863]
[1739498375353,0.55,2686.9,2686.8,0.88433224]
[1739498376166,0.55,2687.0,2686.8,0.88433224]
[1739498376366,0.55,2687.0,2686.8,0.7863]
[1739498376778,0.55,2687.0,2686.9,0.09453108]
[1739498377093,2.789,2687.0,2686.9,0.09453108]
[1739498377295,2.789,2687.0,2686.8,0.7863]
[1739498378569,2.789,2687.0,2686.9,0.09453108]
[1739498380596,2.789,2687.0,2686.8,0.7863]
[1739498380757,2.789,2687.0,2686.6,4.48056]
[1739498380957,6.51064,2687.0,2686.9,0.09387401]
[1739498381157,3.528338,2687.0,2686.6,0.7584]
[1739498381358,2.789,2687.0,2686.9,0.09387401]
[1739498381558,2.789,2687.0,2686.6,4.48056]
[1739498381759,2.789,2687.0,2686.9,0.09329084]
[1739498381979,2.789,2687.0,2686.6,4.48056]
[1739498382186,2.789,2687.0,2686.9,0.09329084]
[1739498382371,2.789,2687.0,2686.7,3.72193]
[1739498382567,2.789,2687.0,2686.9,0.09329084]
[1739498382772,2.789,2687.0,2686.8,3.7218]
[1739498382976,2.789,2687.0,2686.9,0.09329084]
[1739498383196,2.789,2687.0,2686.7,3.72199]
[1739498383403,2.789,2687.0,2686.9,0.09329084]
[1739498383569,2.789,2687.0,2686.7,3.72199]
[1739498383769,2.789,2687.0,2686.9,0.09329084]
[1739498383975,2.789,2687.0,2686.7,3.72199]
[1739498384502,2.789,2687.0,2686.8,0.09329084]
[1739498384663,2.789,2687.0,2686.6,4.48049]
[1739498385077,2.789,2687.0,2686.7,0.09329084]
[1739498385569,2.789,2687.0,2686.7,3.81531084]
[1739498387607,2.789,2687.0,2686.7,0.09329084]
[1739498388103,2.789,2687.0,2686.7,3.81528084]
[1739498388304,2.789,2687.0,2686.7,0.09329084]
[1739498388611,2.789,2687.0,2686.8,3.72182]
[1739498388907,2.789,2687.0,2686.9,3.72176]
[1739498389405,2.789,2687.0,2686.9,0.09329084]
[1739498390008,2.789,2687.0,2686.9,3.81505084]
[1739498390167,2.789,2687.0,2686.9,0.09329084]
[1739498392788,2.239,2687.4,2687.0,0.8001]
[1739498393118,5.59,2687.5,2687.2,3.72126]
[1739498393324,0.55,2687.4,2687.2,3.72126]
[1739498393729,0.55,2687.4,2687.3,0.09329086]
[1739498394026,5.59,2687.5,2687.2,3.72126]
[1739498394188,5.59,2687.5,2687.3,0.09329086]
[1739498394383,0.55,2687.4,2687.2,4.545554]
[1739498395021,0.55,2687.4,2687.3,0.761]
[1739498396930,5.32,2687.5,2687.3,0.761]
[1739498397484,5.32,2687.5,2687.3,4.48211]
[1739498397828,5.32,2687.5,2687.4,3.72106]
[1739498398686,0.55,2687.7,2687.6,3.72079]
[1739498399137,0.55,2687.7,2687.6,3.81370321]
[1739498399484,0.6129,2688.1,2687.7,3.72052]
[1739498399718,2.239,2688.2,2687.7,3.72052]
[1739498399719,2.239,2688.2,2687.8,0.09277367]
[1739498399912,2.239,2688.2,2687.7,7.44109]
[1739498400232,5.95897,2688.2,2687.7,3.72052]
[1739498400390,3.72032,2688.0,2687.5,0.7538]
[1739498400587,0.55,2687.9,2687.5,0.7538]
[1739498400806,1.1629,2687.9,2687.5,4.47463]
[1739498401001,0.55,2688.0,2687.7,3.72064]
[1739498401339,5.239,2688.2,2687.8,0.7728]
[1739498401512,0.55,2688.1,2687.8,0.7728]
[1739498401831,0.55,2688.1,2687.8,8.21365]
[1739498402031,0.55,2688.2,2687.9,0.821365]
[1739498402208,0.55,2688.2,2687.9,4.541735]
[1739498402898,0.55,2688.2,2687.9,0.821365]
[1739498403098,0.55,2688.2,2687.8,0.7728]
[1739498403318,5.32,2688.3,2687.2,4.49759]
[1739498403319,0.55,2687.7,2687.2,4.49759]
[1739498403490,5.95924,2688.0,2687.4,3.72105]
[1739498403695,3.72038,2687.9,2687.4,3.72105]
[1739498404301,0.55,2687.8,2687.2,4.4976]
[1739498404494,0.55,2687.8,2687.3,0.44976]
[1739498404692,0.55,2687.7,2687.3,0.44976]
[1739498405358,8.95929,2688.0,2687.2,0.7763]
[1739498405575,3.0,2688.0,2687.6,4.48698]
[1739498405859,0.55,2687.9,2687.6,0.7662]
[1739498406062,0.55,2687.7,2687.3,0.7662]
[1739498406263,3.7208,2687.6,2687.3,0.7662]
[1739498406555,0.55,2687.7,2687.3,0.7662]
[1739498406934,4.27068,2687.7,2687.3,0.7662]
[1739498407251,4.27047,2687.9,2687.3,0.7662]
[1739498407459,6.50947,2687.9,2687.3,5.308251]
[1739498407754,0.55,2687.7,2687.3,4.48736]
[1739498407917,0.55,2687.7,2687.3,4.48731]
[1739498408118,0.55,2687.9,2687.4,3.72106]
[1739498408732,3.99002,2688.2,2687.6,0.8071]
[1739498408934,7.71009,2688.2,2687.6,4.52788]
[1739498409126,7.71007,2688.2,2687.6,5.352774]
[1739498409459,3.72029,2688.0,2687.6,1.631994]
[1739498410087,0.55,2687.9,2687.2,3.72126]
[1739498410245,0.55,2687.9,2686.8,0.015]
[1739498410246,3.72092,2687.6,2687.3,0.806]
[1739498410560,3.72106,2687.4,2687.3,0.806]
[1739498410746,3.72089,2687.6,2687.3,0.806]
[1739498410922,7.44178,2687.6,2687.3,0.806]
[1739498411123,3.72095,2687.5,2687.3,0.806]
[1739498411730,8.35809,2687.6,2687.3,0.806]
[1739498412361,4.6372,2687.6,2687.3,4.979926]
[1739498412662,4.6372,2687.6,2687.5,3.72093]
[1739498412860,4.6372,2687.6,2687.5,4.50613]
[1739498414064,4.6372,2687.6,2687.5,7.52113]
[1739498417849,4.6372,2687.6,2687.5,7.61021196]
[1739498418163,4.6372,2687.6,2687.5,9.18965264]
[1739498422170,4.6372,2687.6,2687.5,6.18215264]
[1739498422372,4.6372,2687.6,2687.5,6.17465264]
[1739498424769,4.6372,2687.6,2687.5,6.18215264]
[1739498424949,4.6372,2687.6,2687.5,6.18965264]
[1739498426720,4.6372,2687.6,2687.5,9.18965264]
[1739498435956,0.6129,2688.8,2688.6,3.71928]
[1739498436345,0.6129,2688.8,2688.7,0.08752535]
[1739498437888,1.1629,2689.1,2688.7,3.80678535]
[1739498438448,1.1629,2689.1,2688.7,0.08752535]
[1739498438643,1.1629,2689.1,2688.8,3.71911]
[1739498438872,0.6129,2689.7,2689.3,3.71835]
[1739498439190,0.6129,2689.7,2689.0,0.7887]
[1739498439191,0.6129,2689.7,2689.4,3.71824]
[1739498439397,1.1629,2689.5,2689.4,0.08725513]
[1739498439562,0.6129,2690.0,2689.1,0.7936]
[1739498439761,0.6129,2689.8,2689.4,3.80544326]
[1739498439958,0.6129,2689.8,2689.2,3.71857]
[1739498440276,0.6129,2689.8,2688.9,0.7936]
[1739498440477,0.55,2689.7,2689.5,3.71802]
[1739498440680,0.6129,2689.8,2689.5,3.71802]
[1739498440875,0.6129,2689.8,2689.6,0.08668199]
[1739498441393,0.6129,2689.8,2689.3,3.71833]
[1739498441569,1.90932892,2689.8,2689.7,0.08668199]
[1739498441769,1.90932892,2689.8,2689.4,3.71828]
[1739498441968,4.32963,2690.6,2689.9,3.71754]
[1739498442193,4.32963,2690.6,2689.9,3.71751]
[1739498442391,4.32963,2690.6,2690.0,0.08646097]
[1739498442593,0.459963,2690.5,2690.0,0.08646097]
[1739498443013,0.459963,2690.5,2690.0,3.80391097]
[1739498443214,0.55,2690.4,2690.0,0.08646097]
[1739498443515,0.6129,2690.1,2689.3,3.71831]
[1739498443715,4.26755,2690.0,2689.4,3.71825]
[1739498444014,4.26755,2690.0,2689.2,4.48545]
[1739498444015,4.205735,2689.9,2689.3,3.71839]
[1739498445216,0.6129,2689.6,2689.0,4.48579]
[1739498445420,0.6129,2689.6,2689.1,3.71869]
[1739498446743,0.6129,2689.6,2689.1,3.71863]
[1739498446887,0.6129,2689.6,2689.2,3.71849]
[1739498447219,0.6129,2689.6,2689.3,3.71841]
[1739498450144,0.6129,2689.6,2689.1,3.71863]
[1739498450289,1.045979,2689.6,2689.1,7.43725]
[1739498450489,1.045979,2689.6,2689.1,3.71862]
[1739498451425,1.045979,2689.6,2689.1,7.43723]
[1739498451633,1.045979,2689.6,2689.2,0.08624]
[1739498452009,1.045979,2689.6,2689.2,3.8048]
[1739498452190,1.045979,2689.6,2689.2,3.80479]
[1739498454033,1.045979,2689.6,2689.2,0.08624]
[1739498454337,1.045979,2689.6,2688.8,3.71904]
[1739498454338,0.6129,2689.3,2688.8,3.71904]
[1739498455037,0.6129,2689.3,2688.9,3.71892]
[1739498455459,3.71871,2689.1,2688.0,8.75]
[1739498455659,0.6129,2688.8,2688.4,3.71957]
[1739498456172,3.71978,2688.4,2687.9,3.72029]
[1739498456295,7.43956,2688.4,2687.8,3.72044]
[1739498456492,3.71977,2688.4,2687.7,3.72056]
[1739498456751,3.71977,2688.4,2687.9,3.72033]
[1739498456906,3.71977,2688.4,2687.9,7.44062]
[1739498457108,4.3324,2688.6,2688.0,3.72014]
[1739498457454,4.3324,2688.6,2687.3,0.71865589]
[1739498457455,0.6129,2688.6,2688.2,3.71989]
[1739498457759,0.6129,2688.6,2688.4,3.71956]
[1739498457915,0.6129,2688.9,2688.6,3.7193]
[1739498458101,0.55,2688.8,2688.5,3.71946]
[1739498458808,0.6129,2688.9,2688.5,3.71946]
[1739498458993,0.6129,2688.9,2688.5,0.371946]
[1739498459201,4.33196,2688.9,2688.3,3.71973]
[1739498460040,4.33196,2688.9,2688.4,3.71961]
[1739498460336,0.6129,2688.9,2688.6,3.7193]
[1739498460643,0.6129,2689.2,2688.8,3.71902]
[1739498460989,0.6129,2689.2,2688.6,3.7193]
[1739498461193,0.6129,2689.2,2688.1,3.7612]
[1739498461194,0.55,2689.1,2688.5,3.71948]
[1739498461396,3.71921,2688.8,2688.2,3.71984]
[1739498461628,0.6129,2688.7,2688.2,3.71995]
[1739498462051,0.6129,2688.7,2688.0,3.72014]
[1739498462361,3.71961,2688.5,2688.0,3.72014]
[1739498462883,4.33225,2688.7,2687.8,3.72043]
[1739498462884,0.55,2688.6,2687.8,3.72043]
[1739498463008,3.71991,2688.3,2687.7,3.72055]
[1739498463380,0.6129,2688.2,2687.8,0.448403]
[1739498463514,0.6129,2688.2,2687.7,3.72055]
[1739498463920,0.6129,2688.2,2687.8,3.72044]
[1739498464305,4.3329,2688.2,2687.7,3.72062]
[1739498464513,4.3329,2688.2,2687.7,7.4412]
[1739498465053,0.6129,2688.2,2687.8,3.72042]
[1739498465847,0.6129,2688.2,2687.9,3.72035]
[1739498466023,0.6129,2688.2,2687.9,3.72028]
[1739498466747,0.6129,2688.5,2688.1,3.72009]
[1739498467106,0.6129,2688.5,2688.2,3.80168714]
[1739498467823,0.6129,2688.5,2688.2,0.08186714]
[1739498469083,0.6129,2688.5,2688.2,3.80180714]
[1739498471151,0.6129,2688.5,2688.2,0.08186714]
[1739498473167,4.33255,2688.5,2688.2,0.08186714]
[1739498473569,4.33255,2688.5,2688.0,3.72016]
[1739498473769,4.33255,2688.5,2688.3,0.08187532]
[1739498473959,4.33255,2688.5,2688.0,3.72016]
[1739498474425,0.55,2688.4,2688.1,0.0789528]
[1739498474629,3.71996,2688.2,2688.1,0.0789528]
[1739498474971,0.6129,2688.1,2687.7,3.72058]
[1739498475466,0.6129,2688.1,2687.6,3.7207]
[1739498475666,4.33302,2688.1,2687.7,3.72055]
[1739498476028,0.6129,2688.1,2687.8,3.72041]
[1739498476366,4.33228,2688.7,2687.7,3.72065]
[1739498476565,4.33228,2688.7,2687.6,0.74901]
[1739498476566,4.33228,2688.7,2688.2,3.71987]
[1739498476770,0.55,2688.6,2688.2,4.091857]
[1739498477068,0.6129,2688.7,2688.5,3.71946]
[1739498477366,0.6129,2689.2,2688.6,0.03719297]
[1739498477573,0.6129,2689.2,2689.0,3.71878]
[1739498477748,0.6129,2689.6,2689.3,3.71836]
[1739498478073,0.6129,2689.9,2689.5,3.71816]
[1739498478271,0.6129,2689.9,2689.5,3.70656]
[1739498478500,4.33052,2689.9,2689.3,3.71839]
[1739498478697,4.33052,2689.9,2689.3,7.43675]
[1739498479027,4.33052,2689.9,2689.4,3.71826]
[1739498479257,0.6129,2689.9,2689.0,1.155778]
[1739498479457,0.6129,2689.9,2689.3,3.71843]
[1739498479660,0.6129,2689.9,2689.3,3.71835]
[1739498479854,5.68899237,2690.3,2689.3,3.71835]
[1739498479855,0.6129,2690.5,2690.0,3.71738]
[1739498480040,0.6129,2690.5,2690.2,3.71718]
[1739498480245,1.045848,2690.5,2690.2,3.71718]
[1739498480832,3.98738,2690.8,2690.0,3.71739]
[1739498480833,4.32943,2690.7,2690.0,3.71739]
[1739498481060,4.26664,2690.6,2690.1,3.71732]
[1739498481246,3.71664,2690.6,2690.1,3.71732]
[1739498481656,3.71664,2690.6,2690.2,0.07745674]
[1739498482242,3.71664,2690.6,2689.8,3.71772]
[1739498482443,0.432954,2690.5,2690.3,0.07717083]
[1739498482648,3.71762,2689.9,2689.4,0.8273]
[1739498482844,4.33039,2690.0,2689.4,3.7182]
[1739498483042,4.26763,2689.9,2689.5,0.07717083]
[1739498483280,0.55,2689.9,2689.5,0.07717083]
[1739498483436,0.55,2689.9,2689.4,3.71827]
[1739498483637,0.55,2689.9,2689.6,0.07716266]
[1739498483937,4.26787,2689.8,2689.7,0.0773342]
[1739498484354,0.55,2689.7,2689.2,3.7185]
[1739498484643,0.55,2689.7,2689.2,7.43697]
[1739498484839,3.71796,2689.7,2689.0,3.71879]
[1739498485040,3.71796,2689.7,2689.1,3.71863]
[1739498485280,4.26865,2689.2,2688.6,3.71937]
[1739498485440,0.6129,2688.9,2688.3,3.71973]
[1739498485643,0.6129,2688.9,2688.5,3.71946]
[1739498485845,0.55,2688.8,2688.2,4.091927]
[1739498486059,0.55,2688.8,2688.2,7.811727]
[1739498486366,4.26913,2688.8,2688.2,4.091847]
[1739498487060,0.55,2688.8,2688.4,3.71967]
[1739498487469,0.8849,2688.9,2688.4,3.71967]
[1739498487680,0.8849,2688.9,2688.5,3.71946]
[1739498487844,0.6129,2688.9,2688.5,3.71946]
[1739498488269,0.6129,2688.9,2688.7,3.71925]
[1739498488470,1.1629,2689.2,2688.6,3.71931]
[1739498488684,1.1629,2689.2,2688.5,3.71941]
[1739498488988,3.71886,2689.0,2688.5,3.71941]
[1739498489394,4.26893,2689.0,2688.4,4.1287657]
[1739498489674,0.55,2689.1,2688.4,0.4091657]
[1739498489840,0.6129,2688.6,2688.2,3.71987]
[1739498490446,0.6129,2688.6,2688.3,3.71982]
[1739498491288,0.6129,2688.6,2688.4,3.71967]
[1739498491664,0.6129,2688.6,2688.5,3.71954]
[1739498491890,4.33185,2689.0,2688.5,3.71954]
[1739498492068,0.55,2688.9,2688.5,3.71954]
[1739498493294,4.269,2688.9,2688.5,3.71954]
[1739498494395,4.26905,2688.9,2688.4,3.71961]
[1739498494558,3.71914,2688.8,2688.2,3.71982]
[1739498494763,3.71914,2688.8,2688.2,7.43968]
[1739498494948,0.55,2688.9,2688.3,3.71974]
[1739498495148,3.71916,2688.8,2688.3,3.71974]
[1739498495462,3.71916,2688.8,2688.2,4.463788]
[1739498495463,3.71927,2688.7,2688.2,4.463788]
[1739498495679,3.71991,2688.3,2687.8,0.7543]
[1739498495880,3.71992,2688.3,2687.8,3.72044]
[1739498496298,4.27,2688.2,2687.7,3.72057]
[1739498496686,4.27,2688.2,2687.8,0.07284348]
[1739498496889,0.55,2688.2,2687.8,0.07284348]
[1739498497077,0.55,2688.2,2687.6,3.72069]
[1739498497278,4.26999,2688.2,2687.9,0.07284348]
[1739498497473,4.26999,2688.2,2687.7,3.72058]
[1739498497789,4.26998,2688.2,2687.8,3.72051]
[1739498497982,0.55,2688.2,2687.8,0.07284348]
[1739498498187,3.72011,2688.1,2687.8,0.07284348]
[1739498498410,3.72011,2688.1,2687.7,3.72065]
[1739498498618,3.72011,2688.1,2687.9,0.07284348]
[1739498498912,3.72011,2688.1,2687.7,3.72065]
[1739498499207,4.27011,2688.1,2687.7,3.72065]
[1739498499453,4.27011,2688.1,2687.8,0.07284348]
[1739498499641,0.55,2688.1,2687.8,3.79328348]
[1739498499911,0.55,2688.1,2687.8,3.72044]
[1739498500116,0.55,2688.1,2687.9,0.07344051]
[1739498500586,4.27011,2688.1,2687.9,0.07344051]
[1739498500796,0.55,2688.1,2687.9,0.07344051]
[1739498501122,3.71982,2688.3,2687.8,3.72051]
[1739498501270,3.71982,2688.3,2688.0,0.07344051]
[1739498501470,0.55,2688.2,2687.8,3.72051]
[1739498501710,0.55,2688.2,2688.1,0.07344051]
[1739498501913,0.55,2688.2,2687.8,3.72051]
[1739498502080,0.55,2688.2,2688.1,0.07344051]
[1739498502280,3.72011,2688.1,2687.7,3.72064]
[1739498502483,3.72002,2688.2,2687.5,3.72084]
[1739498502704,3.72002,2688.2,2687.6,3.72078]
[1739498502904,2.789,2688.3,2687.5,0.448274]
[1739498503262,0.55,2687.8,2686.7,0.8328]
[1739498503542,0.55,2687.8,2686.9,3.72164]
[1739498503543,3.72086,2687.6,2686.9,3.72164]
[1739498503699,3.72093,2687.5,2686.9,3.72164]
[1739498504039,3.72093,2687.5,2687.1,3.72148]
[1739498504204,3.72086,2687.6,2687.1,3.72148]
[1739498504406,3.72086,2687.6,2687.1,4.465792]
[1739498504738,3.72107,2687.4,2687.0,3.72162]
[1739498504894,3.72107,2687.4,2686.9,3.72175]
[1739498505100,3.72107,2687.4,2686.9,3.72176]
[1739498505559,3.72121,2687.3,2686.9,3.72176]
[1739498505765,4.33397,2687.4,2686.9,3.72165]
[1739498506797,4.33397,2687.4,2686.5,3.0]
[1739498506798,0.55,2687.3,2686.5,3.72223]
[1739498507037,1.34577428,2687.4,2686.2,3.73017]
[1739498507038,0.55,2687.1,2686.7,3.72198]
[1739498507237,0.55,2687.1,2686.8,3.72186]
[1739498508249,0.55,2687.2,2686.8,3.72186]
[1739498508948,0.55,2687.2,2686.9,3.72175]
[1739498509742,0.55,2687.2,2686.7,3.72193]
[1739498509950,4.27136,2687.2,2686.7,3.72193]
[1739498510637,4.27136,2687.2,2686.7,7.4439]
[1739498511443,2.239,2687.2,2686.6,3.72217]
[1739498511600,2.239,2687.2,2686.8,3.79491379]
[1739498511806,0.6129,2687.4,2686.9,3.72164]
[1739498512043,0.6129,2687.4,2687.0,3.72153]
[1739498512345,4.33396,2687.4,2687.1,0.07304379]
[1739498512848,4.33396,2687.4,2686.9,3.72175]
[1739498513033,4.33396,2687.4,2687.2,0.07304379]
[1739498513235,0.6129,2687.4,2687.0,3.7216]
[1739498513435,1.1629,2687.4,2687.3,0.07304379]
[1739498513744,1.1629,2687.4,2687.0,3.7216]
[1739498513945,1.1629,2687.4,2687.0,7.44314]
[1739498514132,1.1629,2687.4,2687.1,0.07304379]
[1739498514338,0.6129,2687.7,2687.2,3.72128]
[1739498514537,0.6129,2687.7,2687.3,3.72109]
[1739498514735,0.6129,2687.7,2687.4,0.07304379]
[1739498515051,0.55,2687.6,2687.4,0.07304379]
[1739498515235,4.27093,2687.5,2687.4,0.07304379]
[1739498515431,3.72122,2687.3,2686.8,3.72181]
[1739498515871,4.27112,2687.4,2686.9,3.79470379]
[1739498516173,0.55,2687.4,2687.0,3.7216]
[1739498516336,0.55,2687.5,2687.1,3.7214]
[1739498516871,4.27101,2687.5,2687.2,0.07304379]
[1739498517218,4.27101,2687.5,2687.0,3.72151]
[1739498517411,4.27101,2687.5,2687.3,0.07304379]
[1739498517611,4.27101,2687.5,2687.0,3.72151]
[1739498517812,4.27101,2687.5,2687.4,0.07304379]
[1739498518034,3.72113,2687.4,2686.8,3.72178]
[1739498518316,1.1629,2687.2,2686.7,3.72197]
[1739498519217,4.88426,2687.2,2686.7,3.72197]
[1739498519458,4.88426,2687.2,2686.4,0.821]
[1739498519459,1.1629,2687.2,2686.4,0.821]
[1739498519650,1.1629,2687.2,2686.4,3.72239]
[1739498519651,4.27183,2686.9,2686.4,3.72239]
[1739498519884,4.27183,2686.9,2686.2,4.54363]
[1739498519885,3.72197,2686.8,2686.3,3.72252]
[1739498520177,4.3343,2687.2,2686.6,3.7221]
[1739498520316,4.3343,2687.2,2686.7,3.72197]
[1739498520517,0.6129,2687.2,2686.8,3.72184]
[1739498520837,0.6129,2687.4,2687.0,3.72158]
[1739498521036,0.55,2687.3,2687.2,3.72132]
[1739498521241,0.55,2687.3,2687.1,3.72147]
[1739498522057,0.6129,2687.4,2687.2,3.72123]
[1739498522274,5.32,2687.5,2687.4,3.72106]
[1739498522415,0.6129,2687.7,2687.3,3.7212]
[1739498522783,0.6129,2687.7,2687.4,3.721]
[1739498523117,0.6129,2687.7,2687.3,3.7212]
[1739498523485,0.6129,2687.7,2687.2,3.72127]
[1739498523624,4.33361,2687.7,2687.1,3.7214]
[1739498523819,4.33361,2687.7,2687.3,3.72119]
[1739498524552,4.33361,2687.7,2687.2,3.72134]
[1739498524754,4.33361,2687.7,2687.1,3.72146]
[1739498524755,4.27082,2687.6,2687.1,3.72146]
[1739498524952,3.72099,2687.5,2686.9,4.48123]
[1739498525159,3.72099,2687.5,2687.0,3.72154]
[1739498525657,2.789,2687.6,2686.7,4.53918]
[1739498525848,2.789,2687.4,2686.7,3.72202]
[1739498526395,0.55,2686.8,2685.7,8.75]
[1739498526521,4.2719,2686.8,2686.3,3.72255]
[1739498527036,0.55,2686.8,2686.3,3.72259]
[1739498527375,3.72225,2686.6,2686.1,3.72286]
[1739498527679,4.33515,2686.6,2686.1,3.72286]
[1739498528038,4.33515,2686.6,2686.0,3.72291]
[1739498528263,3.72231,2686.5,2686.0,3.72291]
[1739498528641,3.72253,2686.4,2685.9,3.72313]
[1739498528829,0.55,2686.3,2685.9,3.72313]
[1739498529024,0.55,2686.3,2685.9,3.72305]
[1739498529245,0.55,2686.4,2686.0,3.72298]
[1739498529647,0.55,2686.4,2685.9,3.72305]
[1739498529926,0.55,2686.4,2686.1,3.72273]
[1739498530130,0.6129,2686.6,2686.2,3.72265]
[1739498530477,4.3348,2686.8,2686.3,3.72246]
[1739498531545,0.55,2686.7,2686.2,3.72265]
[1739498531887,0.55,2686.7,2686.4,3.72241]
[1739498532018,0.55,2686.7,2685.8,3.72324]
[1739498532019,0.55,2686.7,2686.0,3.72294]
[1739498532219,3.72222,2686.6,2686.0,7.44583]
[1739498532426,0.55,2686.4,2685.9,3.72307]
[1739498532687,0.6129,2686.3,2685.9,3.72307]
[1739498532837,0.55,2686.4,2686.2,3.72273]
[1739498533376,0.55,2686.4,2686.0,3.723]
[1739498533695,0.55,2686.4,2686.1,3.72286]
[1739498533894,0.55,2686.4,2686.3,3.72259]
[1739498534234,3.72195,2686.8,2686.3,3.72259]
[1739498534496,0.6129,2686.7,2686.3,3.72252]
[1739498534787,9.92562,2687.0,2686.5,3.72222]
[1739498534934,0.55,2686.9,2686.5,3.72222]
[1739498535298,0.55,2686.9,2686.3,3.72252]
[1739498535430,4.27182,2686.9,2686.4,3.72244]
[1739498535774,0.55,2686.6,2686.1,3.72278]
[1739498535937,0.6129,2686.5,2686.2,0.07364162]
[1739498536138,0.6129,2686.5,2686.2,3.79634162]
[1739498536592,0.55,2686.4,2686.2,0.07364162]
[1739498536797,3.72246,2686.4,2686.0,3.723]
[1739498536954,0.55,2686.3,2686.1,0.07364162]
[1739498537938,2.789,2686.3,2685.8,0.7774]
[1739498538088,2.789,2686.3,2686.2,0.07399377]
[1739498538089,0.55,2686.3,2686.2,0.07399377]
[1739498538289,0.55,2686.3,2686.0,3.72291]
[1739498538490,0.55,2686.3,2686.2,0.07399377]
[1739498538689,0.55,2686.3,2686.0,3.72291]
[1739498538889,0.55,2686.3,2686.2,0.07399377]
[1739498539089,0.55,2686.3,2686.0,3.72291]
[1739498539324,0.55,2686.3,2686.2,0.07399377]
[1739498539643,5.9329,2686.5,2686.2,3.7227]
[1739498539846,0.55,2686.4,2686.3,3.72252]
[1739498540057,0.55,2686.4,2686.3,3.79667759]
[1739498540342,0.55,2686.4,2686.3,0.07415759]
[1739498540646,0.55,2686.4,2685.8,0.7774]
[1739498540828,0.6129,2686.3,2685.9,3.72306]
[1739498541350,4.33555,2686.3,2685.9,3.72314]
[1739498541503,0.6129,2686.3,2685.9,3.72314]
[1739498541846,4.3355,2686.3,2686.0,0.07417398]
[1739498542746,0.55,2686.2,2686.0,0.07417398]
[1739498542956,4.27283,2686.2,2686.0,0.07417398]
[1739498543151,4.27283,2686.2,2685.8,3.72321]
[1739498543743,0.55,2686.2,2685.9,0.07428867]
[1739498543929,0.55,2686.2,2685.9,7.52044867]
[1739498544245,0.55,2686.2,2685.9,0.07428867]
[1739498544446,0.55,2686.2,2685.9,3.79739867]
[1739498544671,0.55,2686.2,2686.0,3.723]
[1739498544878,0.55,2686.2,2685.9,0.07428867]
[1739498545026,4.27273,2686.2,2685.8,3.72327]
[1739498545218,4.27273,2686.2,2686.0,0.07428867]
[1739498545544,0.55,2686.2,2685.8,3.72322]
[1739498545755,0.55,2686.2,2686.1,0.07428867]
[1739498545967,0.55,2686.2,2686.1,0.07460002]
[1739498546338,0.55,2686.2,2685.9,3.72308]
[1739498546533,0.55,2686.2,2685.9,7.44609]
[1739498546758,0.55,2686.2,2686.0,0.07460002]
[1739498547160,5.32,2686.5,2686.0,0.07460002]
[1739498547493,3.72246,2686.4,2686.0,3.79759002]
[1739498547631,0.55,2686.3,2686.0,0.07460002]
[1739498547832,0.55,2686.1,2686.0,0.07460002]
[1739498548034,4.27286,2686.1,2686.0,0.07460002]
[1739498548293,1.262476,2686.1,2685.7,3.72342]
[1739498548499,7.224336,2686.1,2686.0,0.07460002]
[1739498548662,7.224336,2686.1,2685.6,3.72355]
[1739498548663,0.55,2685.9,2685.6,3.72355]
[1739498549048,0.55,2686.0,2685.7,3.79794002]
[1739498549799,4.27307,2686.0,2685.7,0.07460002]
[1739498550109,1.1629,2685.8,2685.4,3.72377]
[1739498550281,0.6129,2686.0,2685.6,3.72346]
[1739498550461,0.6129,2686.0,2685.6,3.72348]
[1739498550666,0.55,2685.9,2685.7,3.72332]
[1739498551585,0.55,2685.9,2685.5,3.72366]
[1739498552181,4.27316,2685.9,2685.5,3.72366]
[1739498552383,0.55,2685.9,2685.5,3.72366]
[1739498552581,0.55,2685.9,2685.6,3.72347]